bitfinex-derivatives/quotes_SOLF0:USTF0_20220104
["timestamp","ask_amount","ask_price","bid_price","bid_amount"]
[1641298701543,32.88879,171.14,171.11,6.0]
[1641298705647,45.23854759,171.14,171.11,6.0]
[1641298707152,45.23854759,171.14,171.1,4.07784663]
[1641298707351,27.66479,171.11,171.06,20.96975759]
[1641298708051,27.66479,171.11,171.06,8.62]
[1641298709054,40.01454759,171.11,171.06,8.62]
[1641298710555,40.01454759,171.11,171.03,18.18934415]
[1641298710754,40.01454759,171.11,171.03,12.34975759]
[1641298710956,40.01454759,171.11,171.01,6.92049799]
[1641298711155,40.01454759,171.11,171.01,15.68049799]
[1641298711356,27.66479,171.04,171.01,8.76]
[1641298712156,21.07360092,171.04,171.01,8.76]
[1641298713157,5.238,171.07,171.01,8.76]
[1641298715360,27.66479,171.08,171.01,8.76]
[1641298719967,27.66479,171.08,171.01,14.76]
[1641298724275,27.66479,171.11,171.01,14.76]
[1641298725374,27.66479,171.11,171.02,27.66479]
[1641298725575,27.66479,171.11,171.01,14.76]
[1641298726878,12.86788957,171.1,171.02,1.35849842]
[1641298729582,27.66479,171.07,171.02,1.35849842]
[1641298730182,33.55979,171.07,171.02,1.35849842]
[1641298730383,2.76051322,171.06,171.02,1.35849842]
[1641298730983,2.76051322,171.06,171.01,6.0]
[1641298731286,12.87033941,171.06,171.01,6.0]
[1641298731883,2.76051322,171.06,171.02,1.35841737]
[1641298732086,2.76051322,171.06,171.02,7.93641737]
[1641298732687,2.76051322,171.06,171.03,1.35841737]
[1641298735490,2.76051322,171.07,171.03,1.35841737]
[1641298737693,12.87022589,171.07,171.02,1.35841737]
[1641298739392,2.76051322,171.07,171.02,1.35841737]
[1641298740094,12.86987924,171.07,171.02,1.35841737]
[1641298741495,12.35848591,171.06,171.02,1.35841737]
[1641298742294,15.11899913,171.07,171.02,1.35841737]
[1641298742794,12.35848591,171.06,171.02,1.35841737]
[1641298746695,12.87009045,171.07,171.02,1.35841737]
[1641298746696,15.11899913,171.07,171.02,1.35841737]
[1641298749001,12.35848591,171.06,171.02,1.35841737]
[1641298749800,15.11899913,171.07,171.02,1.35841737]
[1641298750000,15.11899913,171.07,171.02,7.18541737]
[1641298751006,2.76051322,171.07,171.03,1.35841737]
[1641298751805,12.35848591,171.1,171.04,5.83941606]
[1641298752908,12.35848591,171.1,171.05,1.35841737]
[1641298753109,12.35848591,171.12,171.05,1.35841737]
[1641298753709,12.35848591,171.1,171.04,12.35848591]
[1641298753909,12.35848591,171.1,171.03,1.35841737]
[1641298754412,12.35848591,171.11,171.03,13.71690328]
[1641298755111,12.35848591,171.09,171.03,1.35841737]
[1641298755913,12.35848591,171.1,171.03,1.35841737]
[1641298756813,12.35848591,171.09,171.02,1.35841737]
[1641298758716,12.35848591,171.1,171.02,13.71690328]
[1641298759517,12.35848591,171.1,171.04,5.83941606]
[1641298760017,12.35848591,171.1,171.05,1.35841737]
[1641298761119,12.35848591,171.12,171.05,1.35841737]
[1641298761620,12.35848591,171.11,171.05,1.35841737]
[1641298763223,12.35848591,171.12,171.05,1.35841737]
[1641298764025,12.35848591,171.11,171.05,1.35841737]
[1641298766029,12.35848591,171.11,171.03,12.35848591]
[1641298766230,12.35848591,171.11,171.03,18.19824298]
[1641298766933,15.11899913,171.12,171.04,13.71690328]
[1641298767535,4.11790865,171.08,171.04,13.71690328]
[1641298771139,4.11790865,171.07,171.04,1.35841737]
[1641298771738,4.11790865,171.08,171.04,13.71690328]
[1641298773140,12.86705102,171.13,171.04,13.71690328]
[1641298773842,4.11772484,171.08,171.04,13.71690328]
[1641298774343,12.86705102,171.13,171.04,13.71690328]
[1641298774644,4.11790242,171.07,171.04,1.35841737]
[1641298775244,4.11789918,171.08,171.04,1.35841737]
[1641298775844,15.11392994,171.12,171.04,13.71690328]
[1641298776544,4.11785068,171.08,171.04,13.71690328]
[1641298776946,4.11785068,171.08,171.04,19.71690328]
[1641298777851,4.634,171.09,171.04,19.71690328]
[1641298778051,4.11800318,171.07,171.05,1.35841737]
[1641298778650,4.634,171.09,171.04,6.0]
[1641298778851,2.76051322,171.08,171.04,6.0]
[1641298779251,4.634,171.09,171.04,6.0]
[1641298779451,4.11817734,171.06,171.05,1.35863529]
[1641298780351,2.75962317,171.09,171.04,6.0]
[1641298780953,4.11819203,171.06,171.05,1.35863235]
[1641298781452,4.11819203,171.06,171.04,6.0]
[1641298781654,2.75961793,171.08,171.04,6.0]
[1641298782154,76.91101672,171.1,171.04,6.0]
[1641298782354,4.11803189,171.07,171.05,1.35866438]
[1641298782552,2.75936751,171.09,171.05,1.35866438]
[1641298782953,2.75936751,171.09,171.04,11.608]
[1641298783156,76.56301672,171.14,171.04,23.96648591]
[1641298783756,2.71816003,171.13,171.05,1.35676024]
[1641298785956,2.71816003,171.13,171.05,13.71524615]
[1641298786857,76.56301672,171.14,171.05,1.35676024]
[1641298787657,76.56301672,171.14,171.06,5.83856371]
[1641298787957,2.75468241,171.13,171.06,5.83856371]
[1641298788560,64.2096,171.14,171.07,1.35676024]
[1641298789261,2.71768795,171.13,171.06,5.83856371]
[1641298790061,64.2096,171.14,171.07,1.39380851]
[1641298790764,2.71763699,171.13,171.07,1.39380851]
[1641298791564,64.2096,171.14,171.07,1.39380851]
[1641298791766,76.56301672,171.14,171.07,1.39380851]
[1641298792366,12.35341672,171.12,171.05,7.23483932]
[1641298793666,12.72539222,171.13,171.06,1.39576423]
[1641298794267,2.72189602,171.13,171.05,5.83907509]
[1641298794467,2.72189602,171.13,171.06,12.35848591]
[1641298795568,76.56185287,171.14,171.06,13.75433616]
[1641298796169,2.72148559,171.13,171.06,13.75433616]
[1641298796873,76.56151242,171.14,171.06,13.75433616]
[1641298797474,2.72147779,171.13,171.06,13.75433616]
[1641298798077,2.72147779,171.13,171.07,5.83822284]
[1641298798476,12.35191242,171.14,171.07,5.83822284]
[1641298799078,59.6455,171.17,171.07,5.83822284]
[1641298799279,2.7204988,171.16,171.1,12.35848591]
[1641298799480,2.7204988,171.16,171.1,17.71048591]
[1641298799979,59.6455,171.17,171.11,1.39585025]
[1641298800679,59.6455,171.17,171.1,17.71048591]
[1641298800880,2.72052497,171.16,171.1,17.71048591]
[1641298801580,4.465,171.16,171.11,1.39598845]
[1641298802681,4.465,171.16,171.1,12.35848591]
[1641298802882,2.72078758,171.15,171.09,12.35848591]
[1641298803384,4.465,171.16,171.09,12.35848591]
[1641298803584,12.34948768,171.15,171.07,13.75443487]
[1641298804286,12.34948768,171.14,171.07,1.39594896]
[1641298805588,40.01427768,171.14,171.07,1.39594896]
[1641298806088,40.01427768,171.14,171.06,21.17848591]
[1641298806289,12.34948768,171.12,171.06,8.82]
[1641298806888,12.34948768,171.12,171.07,1.39574599]
[1641298807090,12.34948768,171.12,171.11,6.0]
[1641298807689,12.72286592,171.13,171.11,6.0]
[1641298807891,12.72286592,171.13,171.11,0.01601037]
[1641298808091,75.52066592,171.13,171.11,0.01601037]
[1641298808290,12.35294077,171.12,171.11,0.01601037]
[1641298808991,15.07445456,171.12,171.11,0.01601037]
[1641298813096,2.72151379,171.12,171.11,0.01601037]
[1641298813896,2.72151379,171.12,171.11,5.15601037]
[1641298815298,2.72151379,171.13,171.11,5.15601037]
[1641298817502,12.35294077,171.14,171.11,5.15601037]
[1641298817703,60.2247,171.16,171.12,29.11444505]
[1641298818203,60.2247,171.16,171.12,1.44965505]
[1641298818704,60.2247,171.16,171.11,17.51449628]
[1641298818905,60.2247,171.16,171.11,5.15601037]
[1641298819704,40.01773077,171.21,171.11,5.15601037]
[1641298819906,61.0606,171.2,171.11,10.99304049]
[1641298820405,61.0606,171.2,171.12,1.44268583]
[1641298821104,61.0606,171.2,171.11,10.99304049]
[1641298821306,2.65458579,171.19,171.11,10.99304049]
[1641298824608,2.65458579,171.19,171.11,5.15601037]
[1641298825908,27.66479,171.17,171.11,5.15601037]
[1641298826108,27.66479,171.17,171.11,13.83601037]
[1641298826310,2.65458579,171.16,171.11,13.83601037]
[1641298830817,27.66479,171.17,171.11,13.83601037]
[1641298835824,73.41354077,171.2,171.11,13.83601037]
[1641298836526,2.6547371,171.19,171.11,13.83601037]
[1641298838029,12.35294077,171.18,171.11,13.83601037]
[1641298838929,2.6547371,171.19,171.11,13.83601037]
[1641298839829,2.6547371,171.19,171.11,41.50080037]
[1641298840032,12.35294077,171.18,171.12,1.44965244]
[1641298841030,15.00767787,171.19,171.12,1.44965244]
[1641298842734,15.00767787,171.19,171.15,4.11691744]
[1641298842935,15.00767787,171.19,171.15,10.59991744]
[1641298845039,2.6547371,171.19,171.16,5.56663883]
[1641298845638,15.00767787,171.19,171.16,5.56663883]
[1641298846438,15.00767787,171.19,171.16,4.11691744]
[1641298846638,2.6547371,171.19,171.15,6.483]
[1641298848239,15.00767787,171.19,171.15,10.59991744]
[1641298848441,15.00767787,171.19,171.15,4.11691744]
[1641298849345,12.35294077,171.18,171.14,4.11691744]
[1641298850041,2.6547371,171.19,171.16,4.11691744]
[1641298851047,12.35294077,171.18,171.14,4.11691744]
[1641298854952,15.00767787,171.19,171.15,4.11691744]
[1641298855154,15.00767787,171.19,171.15,10.60591744]
[1641298855555,15.00767787,171.2,171.15,10.60591744]
[1641298855754,15.00767787,171.2,171.16,5.56659013]
[1641298857053,12.35294077,171.2,171.16,5.56659013]
[1641298857552,12.35294077,171.2,171.16,4.11691744]
[1641298857753,12.51096602,171.22,171.15,6.489]
[1641298857754,12.35294077,171.19,171.15,4.11691744]
[1641298860057,12.35294077,171.2,171.16,4.11691744]
[1641298861561,12.35294077,171.21,171.16,4.11691744]
[1641298861761,12.35294077,171.21,171.17,4.11691744]
[1641298862161,32.46327544,171.21,171.13,1.744e-05]
[1641298862563,27.66479,171.16,171.13,1.744e-05]
[1641298862762,32.46327544,171.21,171.13,1.744e-05]
[1641298862962,32.46327544,171.21,171.13,6.34601744]
[1641298863161,12.35197712,171.17,171.13,6.34601744]
[1641298864764,12.35197712,171.17,171.13,6.346]
[1641298864965,12.35197712,171.18,171.14,1.44971118]
[1641298865466,15.00671422,171.18,171.12,1.44971118]
[1641298866269,12.35197712,171.17,171.12,1.44971118]
[1641298869272,12.35197712,171.16,171.11,0.01601037]
[1641298869672,65.1693,171.15,171.11,0.01601037]
[1641298870073,12.3540212,171.14,171.11,0.01601037]
[1641298870276,12.3540212,171.14,171.08,1.412482]
[1641298870774,30.3195271,171.14,171.08,18.87040015]
[1641298871574,30.3195271,171.14,171.08,12.35848591]
[1641298871774,2.6547371,171.13,171.08,1.41252444]
[1641298872575,12.3540212,171.12,171.07,1.41252444]
[1641298872776,27.66479,171.11,171.07,1.41252444]
[1641298873782,2.6547371,171.1,171.05,1.41252444]
[1641298875484,2.6547371,171.1,171.07,6.0]
[1641298878594,15.0087583,171.1,171.07,0.0001]
[1641298878793,77.5178583,171.1,171.07,0.0001]
[1641298879494,15.0087583,171.09,171.07,0.0001]
[1641298880297,15.0087583,171.09,171.05,1.41240927]
[1641298880496,2.6547371,171.09,171.05,9.27e-06]
[1641298880695,27.66479,171.06,171.02,9.27e-06]
[1641298881498,40.02517847,171.06,171.02,9.27e-06]
[1641298882599,27.66479,171.06,171.02,9.27e-06]
[1641298882997,87.58149,171.06,171.02,9.27e-06]
[1641298883400,87.58149,171.06,170.99,18.87107382]
[1641298884600,87.58149,171.06,171.0,12.35848591]
[1641298884800,87.58149,171.06,171.02,6.0]
[1641298890411,87.58149,171.06,171.0,12.35848591]
[1641298890610,92.29949,171.06,171.0,12.35848591]
[1641298890810,27.66479,171.01,171.0,12.35848591]
[1641298891012,33.82479,171.01,171.0,8.591e-05]
[1641298891310,33.82479,171.01,170.96,32.46327544]
[1641298891710,33.82479,171.01,170.93,32.46327544]
[1641298892510,61.3069,171.0,170.93,32.46327544]
[1641298892712,61.3069,171.0,170.92,72.634]
[1641298892910,61.3069,171.0,170.92,8.9]
[1641298892911,27.66479,170.98,170.92,8.9]
[1641298893311,61.3069,171.0,170.92,8.9]
[1641298893512,27.66479,171.01,170.92,8.9]
[1641298894912,27.66479,171.01,170.92,36.56479]
[1641298895512,59.752,171.0,170.92,36.56479]
[1641298895812,64.583,171.0,170.92,8.9]
[1641298896416,64.583,171.0,170.93,6.0]
[1641298896814,27.66479,170.98,170.93,6.0]
[1641298900221,32.93779,170.98,170.93,6.0]
[1641298902726,27.66479,170.98,170.93,6.0]
[1641298905127,59.752,171.0,170.93,6.0]
[1641298905327,59.752,171.0,170.93,11.215]
[1641298906628,59.752,171.0,170.93,6.0]
[1641298907028,59.752,171.0,170.94,27.66479]
[1641298911641,10.46095603,170.99,170.94,27.66479]
[1641298911842,16.63995603,170.99,170.94,27.66479]
[1641298914144,6.179,170.99,170.94,27.66479]
[1641298914848,16.64000799,170.99,170.94,27.66479]
[1641298916146,6.179,170.99,170.94,27.66479]
[1641298917350,59.752,171.0,170.94,27.66479]
[1641298917650,10.46106411,170.99,170.94,27.66479]
[1641298919252,10.46106411,170.99,170.93,6.0]
[1641298920353,10.46106411,170.99,170.93,33.66479]
[1641298920852,59.752,171.0,170.93,33.66479]
[1641298921052,2.89203345,170.99,170.94,1.22954209]
[1641298921754,12.36514568,170.98,170.94,1.22954209]
[1641298922554,12.36514568,170.98,170.94,5.35124304]
[1641298926161,4.1215816,170.95,170.94,1.22954209]
[1641298928061,4.1215816,170.96,170.94,1.22954209]
[1641298931767,27.66479,170.99,170.93,33.66479]
[1641298932468,4.11990347,170.96,170.94,1.2298765]
[1641298933170,2.89002697,170.98,170.93,33.66479]
[1641298933369,27.66479,170.99,170.93,33.66479]
[1641298933969,4.11370919,170.96,170.94,1.22798193]
[1641298934771,27.66479,170.99,170.93,33.66479]
[1641298935372,4.1199839,170.95,170.94,1.22986042]
[1641298936376,40.02993568,170.99,170.93,33.66479]
[1641298936974,4.12006742,170.95,170.93,33.66479]
[1641298937175,4.12006742,170.95,170.94,1.22984371]
[1641298937875,27.66479,170.99,170.93,33.66479]
[1641298938075,32.02579,170.99,170.93,33.66479]
[1641298938776,4.12012856,170.94,170.93,33.66479]
[1641298938978,4.12012856,170.94,170.93,6.0]
[1641298939380,32.02579,170.99,170.93,6.0]
[1641298939577,12.36145073,170.97,170.93,6.0]
[1641298939777,12.36145073,170.97,170.89,12.36514568]
[1641298940083,64.9619,170.96,170.89,12.36514568]
[1641298940277,27.66479,170.9,170.89,12.36514568]
[1641298940477,27.66479,170.9,170.86,64.8383]
[1641298940478,34.11379,170.9,170.86,64.8383]
[1641298940677,34.11379,170.9,170.85,12.36514568]
[1641298941278,4.12146394,170.89,170.85,12.36514568]
[1641298941880,2.89201415,170.89,170.88,4.12155946]
[1641298942780,34.11379,170.9,170.84,12.36514568]
[1641298942983,34.11379,170.9,170.85,12.36514568]
[1641298943583,34.11379,170.9,170.89,4.12154596]
[1641298944284,34.11379,170.9,170.85,12.36514568]
[1641298944484,34.11379,170.9,170.86,12.36514568]
[1641298946583,34.11379,170.9,170.85,10.09411594]
[1641298947985,34.11379,170.9,170.85,6.0]
[1641298948385,27.66479,170.87,170.85,6.0]
[1641298949987,27.66479,170.87,170.82,4.09411594]
[1641298950388,27.66479,170.83,170.78,12.36514568]
[1641298950589,33.00079,170.83,170.78,4.09567825]
[1641298951389,33.00079,170.83,170.74,12.36514568]
[1641298951590,26.72895533,170.83,170.73,61.261]
[1641298952390,26.72895533,170.83,170.73,88.92579]
[1641298953192,64.9282,170.82,170.73,88.92579]
[1641298953594,64.9282,170.82,170.73,101.29093568]
[1641298954193,64.9282,170.82,170.74,1.22103837]
[1641298958399,27.66479,170.76,170.74,1.22103837]
[1641298958699,31.82179,170.76,170.74,1.22103837]
[1641298960212,4.157,170.76,170.74,1.22103837]
[1641298960402,27.66479,170.79,170.74,1.22103837]
[1641298964211,27.66479,170.79,170.77,12.36514568]
[1641298964813,27.66479,170.79,170.76,12.36514568]
[1641298966415,2.89821047,170.78,170.74,1.22103837]
[1641298967815,27.66479,170.79,170.74,13.58618405]
[1641298968618,2.89809619,170.78,170.74,1.22103837]
[1641298970520,27.66479,170.79,170.74,13.58618405]
[1641298971719,5.179,170.81,170.75,5.84932148]
[1641298971918,12.36421583,170.82,170.75,5.84932148]
[1641298972119,27.66479,170.83,170.77,12.36514568]
[1641298973121,2.89739389,170.82,170.76,19.56554448]
[1641298973319,66.78659389,170.82,170.76,19.56554448]
[1641298973822,2.89739389,170.82,170.76,19.56554448]
[1641298974222,2.89739389,170.81,170.76,13.58618405]
[1641298974821,40.02900583,170.83,170.76,13.58618405]
[1641298974822,2.89739389,170.82,170.76,13.58618405]
[1641298977328,2.89739389,170.82,170.76,19.64918405]
[1641298977529,2.89739389,170.82,170.77,12.36514568]
[1641298978329,2.89739389,170.82,170.78,12.36514568]
[1641298978929,27.66479,170.83,170.78,12.36514568]
[1641298980835,2.89713889,170.82,170.77,12.36514568]
[1641298983737,2.89713889,170.82,170.76,19.56554448]
[1641298983935,65.62143889,170.82,170.76,19.56554448]
[1641298984436,27.66479,170.8,170.76,19.56554448]
[1641298985635,27.66479,170.8,170.76,13.58618405]
[1641298986037,2.89775946,170.79,170.76,1.22103837]
[1641298987237,2.89775946,170.79,170.77,6.0]
[1641298987638,27.66479,170.8,170.78,1.22103837]
[1641298987838,75.08851583,170.82,170.78,1.22103837]
[1641298988038,12.36421583,170.82,170.78,1.22103837]
[1641298988238,12.36421583,170.83,170.78,1.22103837]
[1641298988439,27.66479,170.8,170.78,1.22103837]
[1641298990840,27.66479,170.8,170.77,6.0]
[1641298994646,27.66479,170.83,170.77,6.0]
[1641298994845,27.66479,170.83,170.77,11.353]
[1641298996449,62.6502,170.85,170.77,39.01779]
[1641298997650,2.8865468,170.84,170.78,1.22219759]
[1641298998554,9.3735468,170.84,170.78,1.22219759]
[1641298999252,9.3735468,170.84,170.77,6.0]
[1641298999956,2.8865468,170.83,170.77,6.0]
[1641299000456,27.66479,170.82,170.77,6.0]
[1641299003062,2.88692207,170.81,170.77,6.0]
[1641299004166,15.2511379,170.84,170.77,6.0]
[1641299004764,27.66479,170.81,170.77,6.0]
[1641299006367,33.98479,170.81,170.77,6.0]
[1641299006565,2.88725346,170.8,170.77,6.0]
[1641299008767,27.66479,170.78,170.77,6.0]
[1641299009370,33.79379,170.78,170.77,6.0]
[1641299009569,33.79379,170.78,170.71,18.38448172]
[1641299009970,49.04525929,170.78,170.7,70.82674568]
[1641299010373,47.8789,170.77,170.7,70.82674568]
[1641299010673,50.76615346,170.77,170.75,4.12419786]
[1641299010873,2.88725346,170.77,170.75,4.12419786]
[1641299011875,2.88725346,170.77,170.75,9.786e-05]
[1641299012776,40.03824953,170.78,170.71,1.22589159]
[1641299013676,2.89841336,170.77,170.71,13.59103727]
[1641299014276,5.904,170.77,170.71,13.59103727]
[1641299014477,5.904,170.77,170.7,19.61038804]
[1641299015277,5.904,170.77,170.7,13.59103727]
[1641299015478,2.89883026,170.76,170.7,1.22589159]
[1641299016077,12.37465196,170.76,170.7,1.22589159]
[1641299016280,61.08635196,170.76,170.7,1.22589159]
[1641299016778,48.7117,170.76,170.68,12.36514568]
[1641299016977,51.61074274,170.76,170.69,12.36514568]
[1641299017980,51.61074274,170.76,170.69,13.59096602]
[1641299017981,2.89902238,170.75,170.69,13.59096602]
[1641299018680,61.08622818,170.76,170.67,8.66]
[1641299018880,48.7117,170.76,170.67,8.66]
[1641299020582,48.7117,170.76,170.7,6.0]
[1641299020885,15.27363153,170.75,170.7,6.0]
[1641299021283,27.66479,170.73,170.7,6.0]
[1641299021482,5.264,170.73,170.7,6.0]
[1641299021684,48.7117,170.76,170.71,1.22580685]
[1641299022786,48.7117,170.76,170.7,6.0]
[1641299022986,2.89883384,170.75,170.7,6.0]
[1641299023388,12.37405682,170.75,170.71,1.22578167]
[1641299024190,15.27317431,170.75,170.7,6.0]
[1641299024890,48.7117,170.76,170.71,1.22578258]
[1641299025290,27.66479,170.75,170.71,1.22578258]
[1641299025588,30.56401589,170.75,170.7,6.0]
[1641299026288,27.66479,170.75,170.7,6.0]
[1641299026490,2.89930779,170.74,170.71,1.22577277]
[1641299027290,27.66479,170.75,170.7,6.0]
[1641299028493,2.89919235,170.74,170.71,1.22579201]
[1641299028992,27.66479,170.75,170.7,6.0]
[1641299029793,27.66479,170.75,170.71,1.22580297]
[1641299029994,2.8991266,170.74,170.71,1.22580297]
[1641299030694,32.28679,170.75,170.7,6.0]
[1641299030893,44.66228523,170.75,170.7,6.0]
[1641299031494,2.89941151,170.74,170.71,1.22575549]
[1641299032098,44.66245607,170.75,170.7,6.0]
[1641299032896,15.27549524,170.74,170.7,6.0]
[1641299033096,15.27549524,170.74,170.66,27.06522941]
[1641299033296,27.66479,170.72,170.66,27.06522941]
[1641299034297,15.27549524,170.74,170.66,27.06522941]
[1641299034497,2.89982917,170.71,170.67,1.22611161]
[1641299034697,7.90582917,170.71,170.67,1.22611161]
[1641299035099,2.89982917,170.7,170.67,1.22611161]
[1641299035899,27.66479,170.72,170.67,1.22611161]
[1641299036700,2.89939989,170.71,170.67,1.22611161]
[1641299038702,2.89939989,170.71,170.67,7.22611161]
[1641299040105,72.14169,170.72,170.67,6.0]
[1641299048513,2.89984915,170.71,170.68,1.22599505]
[1641299049914,15.27551522,170.71,170.67,6.0]
[1641299052721,2.89984915,170.71,170.68,1.22599252]
[1641299053419,15.27551522,170.71,170.67,6.0]
[1641299054018,27.66479,170.68,170.67,6.0]
[1641299054819,30.56463915,170.68,170.67,7.22593702]
[1641299055519,30.56463915,170.68,170.67,6.0]
[1641299055720,30.56463915,170.68,170.61,55.04917102]
[1641299055919,73.70123915,170.68,170.61,55.04917102]
[1641299056520,73.70123915,170.68,170.61,12.28647102]
[1641299056721,2.89984915,170.67,170.62,1.22580683]
[1641299056921,8.68384915,170.67,170.62,1.22580683]
[1641299057523,8.68384915,170.67,170.61,1.22580683]
[1641299057524,12.37566607,170.66,170.61,1.22580683]
[1641299058024,27.66479,170.65,170.61,1.22580683]
[1641299059226,2.89984915,170.64,170.61,1.22580683]
[1641299059927,27.66479,170.65,170.61,1.22580683]
[1641299061029,2.90147499,170.64,170.62,6.0]
[1641299061731,2.90147499,170.64,170.63,1.22580683]
[1641299062429,2.90147499,170.64,170.62,6.0]
[1641299063431,12.37566607,170.65,170.62,6.0]
[1641299063631,12.37566607,170.67,170.63,1.22576059]
[1641299064430,27.66479,170.64,170.62,6.0]
[1641299064933,27.66479,170.64,170.59,8.82]
[1641299065134,27.66479,170.64,170.58,12.28647102]
[1641299065336,27.66479,170.64,170.54,32.46327544]
[1641299065535,47.83714503,170.63,170.57,12.37854352]
[1641299065735,5.86080586,170.61,170.53,32.46327544]
[1641299066436,27.66479,170.54,170.53,32.46327544]
[1641299066635,32.55879,170.54,170.53,32.46327544]
[1641299066936,4.894,170.54,170.51,1.22556702]
[1641299067636,12.37566607,170.56,170.51,1.22556702]
[1641299068337,40.04045607,170.56,170.51,1.22556702]
[1641299068938,27.66479,170.56,170.48,1.22556702]
[1641299069139,33.23679,170.56,170.48,1.22556702]
[1641299070342,33.23679,170.56,170.48,28.89035702]
[1641299070544,13.39161406,170.55,170.48,28.89035702]
[1641299070741,13.39161406,170.55,170.48,1.22556702]
[1641299070942,17.99061406,170.55,170.48,1.22556702]
[1641299071141,44.5285,170.54,170.48,1.22556702]
[1641299071541,44.5285,170.54,170.46,6.02016828]
[1641299071542,5.86355507,170.53,170.46,6.02016828]
[1641299072345,27.66479,170.49,170.46,6.02016828]
[1641299072546,32.67979,170.49,170.45,4.13017449]
[1641299074347,27.66479,170.46,170.45,4.13017449]
[1641299075047,27.66479,170.46,170.44,4.13017449]
[1641299075849,27.66479,170.46,170.45,4.13017449]
[1641299076048,48.734,170.48,170.46,6.0]
[1641299076248,27.66479,170.49,170.46,6.0]
[1641299076950,27.66479,170.49,170.46,10.13017449]
[1641299077552,27.66479,170.49,170.47,4.13017449]
[1641299078455,32.46327544,170.55,170.47,4.13017449]
[1641299079053,32.46327544,170.54,170.46,10.13017449]
[1641299079454,32.46327544,170.56,170.48,4.13017449]
[1641299080361,27.66479,170.54,170.5,4.13017449]
[1641299081460,27.66479,170.57,170.5,4.13017449]
[1641299082560,27.66479,170.54,170.5,4.13017449]
[1641299083259,31.84879,170.54,170.5,4.13017449]
[1641299083664,10.49949942,170.53,170.48,4.13017449]
[1641299085264,48.6025,170.55,170.5,4.13017449]
[1641299086466,10.50037543,170.54,170.49,4.13017449]
[1641299086667,38.16516543,170.54,170.49,4.13017449]
[1641299087666,27.66479,170.54,170.49,4.13017449]
[1641299088166,33.36379,170.54,170.49,4.13017449]
[1641299088366,33.36379,170.54,170.51,4.13017449]
[1641299089569,33.36379,170.54,170.49,4.13017449]
[1641299090671,27.66479,170.51,170.49,4.13017449]
[1641299091672,27.66479,170.51,170.49,7.449e-05]
[1641299091871,27.66479,170.51,170.46,6.0]
[1641299092775,27.66479,170.47,170.46,6.0]
[1641299092977,33.46679,170.47,170.46,6.0]
[1641299093476,5.802,170.47,170.46,6.0]
[1641299093977,5.802,170.47,170.41,6.01596819]
[1641299095075,27.66479,170.51,170.41,6.01596819]
[1641299095978,40.05338249,170.51,170.43,12.38859249]
[1641299098080,40.05338249,170.51,170.4,60.12806544]
[1641299098081,12.38859249,170.49,170.41,18.40456068]
[1641299098280,45.1117,170.48,170.41,18.40456068]
[1641299098581,12.38859249,170.49,170.41,18.40456068]
[1641299099384,12.38859249,170.49,170.41,24.40456068]
[1641299101089,58.48499249,170.5,170.42,12.38859249]
[1641299102491,46.0964,170.5,170.43,12.38859249]
[1641299102890,46.0964,170.5,170.43,40.05338249]
[1641299103490,40.05338249,170.51,170.43,40.05338249]
[1641299103690,40.05338249,170.51,170.43,44.34538249]
[1641299105897,27.66479,170.51,170.43,44.34538249]
[1641299106096,27.66479,170.51,170.43,40.05338249]
[1641299106796,47.5765,170.5,170.43,40.05338249]
[1641299107196,47.5765,170.5,170.43,46.05338249]
[1641299107596,47.5765,170.5,170.43,33.66479]
[1641299108799,47.5765,170.5,170.43,46.05338249]
[1641299110905,47.5765,170.5,170.43,18.38859249]
[1641299111402,52.8415,170.5,170.43,26.94859249]
[1641299112304,2.90278535,170.49,170.44,1.22202583]
[1641299113304,7.45278535,170.49,170.44,1.22202583]
[1641299114003,4.55,170.49,170.44,1.22202583]
[1641299115105,32.21479,170.49,170.44,1.22202583]
[1641299116508,2.90264074,170.48,170.44,1.22202583]
[1641299119010,2.90264074,170.49,170.44,1.22202583]
[1641299120511,15.29123323,170.49,170.44,1.22202583]
[1641299121217,2.90264074,170.49,170.44,1.22202583]
[1641299124219,2.90264074,170.49,170.44,13.61061832]
[1641299124921,2.90264074,170.49,170.44,1.22202583]
[1641299127421,27.66479,170.51,170.44,13.61061832]
[1641299128021,2.90526905,170.5,170.44,19.62707718]
[1641299129726,8.01126905,170.5,170.44,19.62707718]
[1641299130426,8.01126905,170.5,170.44,13.61061832]
[1641299130626,2.90526905,170.49,170.44,1.22202583]
[1641299131330,30.57005905,170.49,170.44,1.22202583]